[Event "73rd Greek Championship 2024"]
[Site "Thessaloniki"]
[Date "2024.12.08"]
[Round "7.1"]
[White "Alexakis, Dimitris"]
[Black "Patrelakis, Evaggelos"]
[Result "1-0"]
[Annotator "TA"]
[ECO "C10"]
[WhiteElo "2520"]
[BlackElo "2437"]
[PlyCount "111"]
[EventDate "2024.12.02"]
[EventType "tourn"]
[EventCountry "GRE"]
[SourceTitle "playchess.com"]
[Source "ChessBase"]
[SourceQuality "1"]
[TimeControl "40/5400+30:1800+30"]

{[%evp 27,111,0,0,5,0,0,4,8,8,0,16,0,0,0,0,0,0,0,12,0,0,0,0,0,26,47,29,0,0,0,80,64,286,286,293,251,440,402,343,219,225,192,470,473,439,241,222,231,226,159,241,249,250,247,735,728,891,685,878,877,745,742,737,590,2401,610,2730,855,1633,1173,2578,1150,29969,29973,29971,29969,29974,29973,29976,29977,29977,29978,29976,29977,29985,29986]} 1. e4 {[%emt 0:03:21]} e6 {[%emt 0:03:26]} 2. d4 {[%emt 0:00:14]} d5 {[%emt 0:00:07]} 3. Nc3 {[%emt 0:00:06]} Nf6 {[%emt 0:00:11]} 4. Bg5 {[%emt 0:00:14]} dxe4 {[%emt 0:00:23]} 5. Nxe4 {[%emt 0:00:10]} Nbd7 {[%emt 0:00:11]} 6. Nf3 {[%emt 0:00:34]} h6 {[%emt 0:00:25]} 7. Nxf6+ {[%emt 0:06:35]} Nxf6 {[%emt 0:00:25]} 8. Be3 {[%emt 0:00:08]} Bd6 {[%emt 0:08:16]} 9. Bd3 {[%emt 0:04:53]} Nd5 {[%emt 0:04:48]} 10. Qe2 {[%emt 0:03:46]} Qf6 {[%emt 0:07:30]} 11. O-O-O {[%emt 0:11:44]} Bd7 {[%emt 0:08:07]} 12. Be4 {[%emt 0:17:16]} Nxe3 {[%emt 0:11:27]} 13. fxe3 {[%emt 0:00:16]} O-O-O {[%emt 0:00:13]} 14. Rhf1 {[%emt 0:21:00]} Qe7 {[%emt 0:00:35]} 15. Ne5 {[%emt 0:00:19]} Bxe5 {[%emt 0:13:29]} 16. dxe5 {[%emt 0:00:08]} Kb8 {[%emt 0:10:19]} 17. Rd3 {[%emt 0:04:21]} Bc8 {[%emt 0:03:02]} 18. Rb3 {[%emt 0:01:55]} Rhf8 {[%emt 0:04:44]} 19. a4 {[%emt 0:07:15]} b6 {[%emt 0:06:26]} 20. Qc4 {[%emt 0:02:23]} Bb7 {[%emt 0:02:11]} 21. Bxb7 {[%emt 0:03:31]} Kxb7 {[%emt 0:00:06]} 22. a5 {[%emt 0:00:06]} Kb8 {[%emt 0:01:45]} 23. Rd3 {[%emt 0:07:17]} Rxd3 {[%emt 0:04:16]} 24. Qxd3 {[%emt 0:00:08]} Qc5 {[%emt 0:00:32]} 25. a6 {[%emt 0:01:33]} Qd5 {[%emt 0:01:47]} (25... Qxe5 26. Rxf7 Rg8 27. Kb1 $18) (25... Kc8 $5) 26. Qxd5 {[%emt 0:02:11]} exd5 {[%emt 0:00:07]} 27. e6 {[%emt 0:01:19]} f6 $1 {[%emt 0:00:14]} 28. Rd1 {[%emt 0:00:03]} c6 {[%emt 0:03:33]} (28... Rd8 $11 {keeps the balance.}) 29. e4 $1 $16 {[%emt 0:00:23]} Rd8 $2 {[%emt 0:01:02]} (29... Re8 $1 $14) 30. exd5 $18 {[%emt 0:00:13]} cxd5 {[%emt 0:00:06]} 31. c4 $1 {[%emt 0:01:01]} d4 $2 {[%emt 0:01:28]} (31... Kc7) 32. b4 {[%emt 0:01:21]} Kc7 {[%emt 0:00:07]} 33. Kc2 {[%emt 0:00:38]} Rd6 {[%emt 0:02:46]} 34. Re1 {[%emt 0:00:21]} d3+ $2 {[%emt 0:00:30]} (34... Kd8 35. e7+ Ke8) 35. Kd2 $18 {[%emt 0:00:03]} Kd8 {[%emt 0:00:05]} 36. e7+ {[%emt 0:00:45]} (36. b5 $142) 36... Ke8 $18 {[%emt 0:00:01] [#]} 37. b5 $1 {[%emt 0:00:31]} f5 {[%emt 0:02:26]} 38. Re5 {[%emt 0:00:49]} Rd4 {[%emt 0:01:50] [#]} (38... f4 $16 {was worth a try.} 39. c5 bxc5 40. Rxc5 Rd7) 39. c5 $1 $18 {[%emt 0:00:04]} bxc5 {[%emt 0:00:30]} 40. Rxc5 {[%emt 0:00:00]} Rb4 $2 {[%emt 0:00:00]} (40... Rd7 41. Rxf5 Kxe7) 41. Rc7 $18 {[%emt 0:17:26]} ({Less strong is} 41. Rxf5 Kxe7 42. Kxd3 g6 $18) 41... Rxb5 {[%emt 0:05:25]} 42. Rxa7 {[%emt 0:00:15]} Ra5 {[%emt 0:00:43]} 43. Kxd3 {[%emt 0:00:12]} Ra4 {[%emt 0:14:17]} 44. h4 {[%emt 0:07:16]} Kf7 {[%emt 0:03:00]} 45. h5 {[%emt 0:01:15]} Ke8 {[%emt 0:00:02]} 46. Kc3 {[%emt 0:01:21]} (46. g3 $142 Ra2 47. Kc4) 46... Kf7 {[%emt 0:00:37]} 47. Kb3 {[%emt 0:00:14]} (47. g3 $142 Ra1 48. Kb4) 47... Ra1 {[%emt 0:00:08]} 48. Kc4 {[%emt 0:00:29]} Ke8 {[%emt 0:03:26]} 49. Kd5 {[%emt 0:00:30]} (49. Kb5 $142 Rb1+ 50. Kc5 Rc1+ 51. Kd6 Rd1+ 52. Ke6 Re1+ 53. Kxf5) 49... Ra2 {[%emt 0:00:54]} 50. Ke6 {[%emt 0:00:37]} Re2+ {[%emt 0:00:29]} 51. Kxf5 {[%emt 0:00:12]} Rf2+ {[%emt 0:00:05]} 52. Kg6 {[%emt 0:02:51]} Rxg2+ {[%emt 0:00:06]} 53. Kh7 {[%emt 0:00:12]} Ra2 {[%emt 0:01:08]} 54. Ra8+ {[%emt 0:01:34]} Kxe7 {[%emt 0:00:09]} 55. a7 {[%emt 0:01:08]} Kf7 {[%emt 0:00:23]} 56. Rg8 {[%emt 0:00:26]} 1-0

[Event "73rd Greek Championship 2024"]
[Site "Thessaloniki"]
[Date "2024.12.08"]
[Round "7.2"]
[White "Tsaknakis, Zisis"]
[Black "Kourkoulos-Arditis, Stamatis"]
[Result "0-1"]
[Annotator "TA"]
[ECO "C68"]
[WhiteElo "2259"]
[BlackElo "2575"]
[PlyCount "52"]
[EventDate "2024.12.02"]
[EventType "tourn"]
[EventCountry "GRE"]
[SourceTitle "playchess.com"]
[Source "ChessBase"]
[SourceQuality "1"]
[TimeControl "40/5400+30:1800+30"]

{[%evp 12,52,12,0,0,-5,51,34,38,21,35,0,0,4,14,0,0,0,0,-33,-54,-58,-53,-97,-108,-92,-94,-230,-243,-241,-222,-215,-205,-207,-198,-182,-188,-175,-150,-933,-956,-29998,-29999]} 1. e4 {[%emt 0:03:33]} e5 {[%emt 0:00:02]} 2. Nf3 {[%emt 0:00:08]} Nc6 {[%emt 0:00:06]} 3. Bb5 {[%emt 0:00:06]} a6 {[%emt 0:00:03]} 4. Bxc6 {[%emt 0:00:06]} dxc6 {[%emt 0:00:07]} 5. O-O {[%emt 0:00:05]} Bg4 {[%emt 0:02:12]} 6. h3 {[%emt 0:00:12]} Bh5 {[%emt 0:00:04]} 7. g4 {[%emt 0:00:46]} Bg6 {[%emt 0:00:04]} 8. Nxe5 {[%emt 0:00:05]} Bd6 {[%emt 0:00:22]} ({Black should play} 8... Qh4 $11) 9. Nxg6 $14 {[%emt 0:00:13]} hxg6 {[%emt 0:00:05] White is slightly better.} 10. Qf3 {[%emt 0:00:07]} Qd7 {[%emt 0:00:36][%cal Of7f5]} 11. d4 {[%emt 0:08:33]} O-O-O {[%emt 0:02:08]} 12. Nc3 {[%emt 0:08:04]} f5 {[%emt 0:01:49]} 13. e5 {[%emt 0:10:32]} Be7 {[%emt 0:04:42]} 14. Ne2 {[%emt 0:15:08]} Nh6 {[%emt 0:13:17][%cal Rf5g4]} 15. Bxh6 {[%emt 0:05:46]} (15. g5 $5 Nf7 $8 16. Qg3 $16) 15... Rxh6 {[%emt 0:00:29]} 16. Kg2 {[%emt 0:02:44]} Rh4 {[%emt 0:05:08][%cal Rf5g4]} 17. Ng3 {[%emt 0:13:51][%cal Rg4f5]} Rf8 {[%emt 0:07:14]} (17... Qxd4 18. gxf5 Rf8 (18... Qxb2 19. Rae1 $11) 19. Rad1 Qxe5 20. Rfe1 $11) 18. gxf5 {[%emt 0:06:29]} gxf5 {[%emt 0:00:06][%cal Og7g5]} 19. e6 {[%emt 0:11:22]} Qxe6 $19 {[%emt 0:05:41][%cal Of5f4]} (19... Qxd4 20. Nxf5 Qc5 21. Nxe7+ Qxe7 22. Qe3 $11) 20. Rfe1 {[%emt 0:02:47]} Qd7 {[%emt 0:00:17][%cal Oe7d6]} 21. Re5 {[%emt 0:01:20]} f4 {[%emt 0:12:40]} (21... Rxd4 22. Rae1 Bf6 23. Rxf5 $15) 22. Ne4 {[%emt 0:00:31]} Rfh8 {[%emt 0:00:18][%cal Oe7f6] [#] ...Bf6! would now be deadly.} (22... Qxd4 $2 23. Rxe7 Qb4 24. Rxg7 $18) 23. Rh1 {[%emt 0:01:40]} g5 {[%emt 0:01:57]} (23... Qxd4 $2 24. Rxe7 Qxb2 25. Qb3 $18) 24. Qb3 {[%emt 0:00:04]} R4h6 {[%emt 0:24:13] Repels Qe6. Strongly threatening ...g4.} (24... Qxd4 $2 {loses.} 25. Rxe7 Kb8 26. f3 $18 (26. Nxg5 Qf6 $17)) (24... g4 25. Qe6 Qxe6 (25... gxh3+ 26. Kf3 $11) (25... Rxh3 26. Rxh3 gxh3+ 27. Kh2 $11) 26. Rxe6 gxh3+ 27. Kf3 $17) 25. Qf7 $2 {[%emt 0:01:05]} (25. Nc5 $17 Bxc5 (25... Qxd4 26. Qxb7+ Kd8 27. Qb8#) 26. dxc5) 25... Rxh3 {[%emt 0:02:09]} 26. Nf6 {[%emt 0:00:52] Against Qg4+} f3+ {[%emt 0:00:08] Weighted Error Value: White=0.83/Black=0.08 (flawless) .  Loses game:     	White=1     	---        Mistake:       	White=1     	Black=1      Inaccurate:     	White=4     	---        OK:         	White=9     	Black=11     Best:        	White=1     	Black=1} 0-1

[Event "73rd Greek Championship 2024"]
[Site "Thessaloniki"]
[Date "2024.12.08"]
[Round "7.3"]
[White "Alexiadis, Hristos"]
[Black "Mitsis, Georgios"]
[Result "1/2-1/2"]
[Annotator "TA"]
[ECO "E04"]
[WhiteElo "2341"]
[BlackElo "2383"]
[PlyCount "93"]
[EventDate "2024.12.02"]
[EventType "tourn"]
[EventCountry "GRE"]
[SourceTitle "playchess.com"]
[Source "ChessBase"]
[SourceQuality "1"]
[TimeControl "40/5400+30:1800+30"]

{[%evp 14,93,54,43,57,55,55,58,54,79,61,26,72,49,45,47,65,52,53,52,56,49,48,32,31,31,39,29,49,47,45,52,47,45,94,53,105,80,70,61,135,149,158,154,160,126,123,87,85,79,92,86,81,82,91,62,83,43,35,0,0,0,0,-7,0,-15,-17,-18,-23,-16,-14,-15,0,0,0,0,0,0,0,0,0,0]} 1. d4 {[%emt 0:05:25]} Nf6 {[%emt 0:00:19]} 2. Nf3 {[%emt 0:00:07]} e6 {[%emt 0:00:45]} 3. c4 {[%emt 0:00:06]} d5 {[%emt 0:00:15]} 4. g3 {[%emt 0:00:12]} dxc4 {[%emt 0:00:24]} 5. Bg2 {[%emt 0:00:09]} a6 {[%emt 0:00:24]} 6. O-O {[%emt 0:02:43]} Nc6 {[%emt 0:00:31]} 7. e3 {[%emt 0:00:45]} Rb8 {[%emt 0:00:43]} 8. Nfd2 {[%emt 0:06:03]} e5 {[%emt 0:00:21]} 9. Bxc6+ {[%emt 0:00:13]} bxc6 {[%emt 0:00:07]} 10. dxe5 {[%emt 0:00:04]} Ng4 {[%emt 0:00:12]} 11. Nxc4 {[%emt 0:00:12]} Be6 {[%emt 0:00:23]} 12. Qc2 {[%emt 0:06:59]} Bxc4 {[%emt 0:11:49]} (12... h5 $11) 13. Qxc4 {[%emt 0:03:43]} Nxe5 {[%emt 0:00:17]} 14. Qe4 {[%emt 0:04:13]} Qd5 {[%emt 0:02:54]} 15. Qxd5 $1 {[%emt 0:24:14]} cxd5 {[%emt 0:00:17]} 16. Rd1 {[%emt 0:00:03]} c6 {[%emt 0:01:17]} 17. b3 {[%emt 0:00:05]} Bb4 {[%emt 0:06:56]} 18. Ba3 {[%emt 0:07:32]} a5 {[%emt 0:02:34]} 19. Bb2 {[%emt 0:00:05]} f6 {[%emt 0:01:11]} 20. Nc3 {[%emt 0:00:05]} Ke7 {[%emt 0:05:38]} 21. Rac1 {[%emt 0:05:45][%cal Ba1c1,Bc1c2,Bc2e2][%mdl 32]} Rhc8 {[%emt 0:04:16]} 22. Na4 {[%emt 0:00:28]} Ke6 {[%emt 0:07:39]} 23. Kg2 {[%emt 0:02:29]} Bd6 {[%emt 0:09:16]} (23... Rb5 $14 {is more appropriate.}) 24. Rc2 {[%emt 0:01:56]} g6 {[%emt 0:20:13]} ({Better is} 24... Bb4 $14) 25. h3 {[%emt 0:04:24]} f5 {[%emt 0:10:09]} 26. f3 {[%emt 0:09:40][%cal Oe3e4]} Nf7 {[%emt 0:05:31] [#]} (26... c5 $14) 27. e4 $1 $16 {[%emt 0:04:47][%mdl 512]} fxe4 {[%emt 0:08:35]} (27... dxe4 28. fxe4) 28. fxe4 {[%emt 0:00:04]} dxe4 {[%emt 0:00:15]} 29. Re2 {[%emt 0:00:47] White is more active.} Re8 {[%emt 0:01:11]} 30. g4 {[%emt 0:00:54][%cal Oa4c5]} Ke7 {[%emt 0:00:32] [#]} 31. Nc3 $1 {[%emt 0:00:41]} Kf8 {[%emt 0:00:27]} 32. Nxe4 {[%emt 0:00:09][%cal Oe2f2]} Be5 {[%emt 0:00:21]} 33. Ba3+ {[%emt 0:02:35]} Kg7 {[%emt 0:00:45]} 34. Nc5 {[%emt 0:02:07]} Bf6 {[%emt 0:00:31]} 35. Rf2 {[%emt 0:00:23]} Bh4 $1 {[%emt 0:00:29]} 36. Rfd2 {[%emt 0:02:49]} Re3 {[%emt 0:00:24]} 37. Nd7 {[%emt 0:04:59]} Rbe8 {[%emt 0:00:08] White should prevent ...Rg3+.} 38. Bb2+ {[%emt 0:00:31]} Kh6 {[%emt 0:00:38]} 39. Bc1 {[%emt 0:00:43]} Ng5 {[%emt 0:00:24]} 40. Rc2 {[%emt 0:00:00][%csl LRc6,LRe3]} Re2+ {[%emt 0:00:00]} (40... Rxh3 $2 41. Bxg5+ (41. Rxc6 $2 {loses.} Re2+ 42. Kg1 Rxa2 $19) 41... Bxg5 42. Kxh3 $18) 41. Rxe2 {[%emt 0:00:54]} Rxe2+ {[%emt 0:00:59]} 42. Kf1 {[%emt 0:03:24]} Rxa2 {[%emt 0:06:45]} 43. Ne5 {[%emt 0:00:50][%cal Od1d7] Black must now prevent Rd7!.} Kg7 {[%emt 0:00:10] aiming for ...Rf2+.} 44. Bxg5 {[%emt 0:02:10]} Bxg5 {[%emt 0:00:06]} 45. Rd7+ {[%emt 0:04:20]} Kg8 {[%emt 0:00:34]} 46. Nxc6 {[%emt 0:00:17]} a4 {[%emt 0:00:07]} 47. bxa4 {[%emt 0:00:05]} 1/2-1/2

[Event "73rd Greek Championship 2024"]
[Site "Thessaloniki"]
[Date "2024.12.08"]
[Round "7.4"]
[White "Kolytas, Spiridon"]
[Black "Stamatiou, Rodolfos"]
[Result "0-1"]
[Annotator "RC"]
[ECO "A30"]
[WhiteElo "1946"]
[BlackElo "2308"]
[PlyCount "64"]
[EventDate "2024.12.02"]
[EventType "tourn"]
[EventCountry "GRE"]
[SourceTitle "playchess.com"]
[Source "ChessBase"]
[SourceQuality "1"]
[TimeControl "40/5400+30:1800+30"]

1. Nf3 {[%emt 0:02:20]} c5 {[%emt 0:02:54]} 2. c4 {[%emt 0:00:07]} Nc6 {[%emt 0:00:06]} 3. b3 {[%emt 0:00:05]} e5 {[%emt 0:03:08]} 4. Bb2 {[%emt 0:00:05]} e4 {[%emt 0:04:29]} 5. Ng1 {[%emt 0:00:04]} Nf6 {[%emt 0:01:20]} 6. Bxf6 {[%emt 0:01:01]} Qxf6 {[%emt 0:01:20]} 7. Nc3 {[%emt 0:00:07]} Qg6 {[%emt 0:05:05]} 8. g3 {[%emt 0:00:22]} Bd6 {[%emt 0:04:27]} 9. Bg2 {[%emt 0:06:04]} f5 {[%emt 0:00:38]} 10. Nh3 {[%emt 0:16:27]} b6 {[%emt 0:04:43]} 11. Nd5 {[%emt 0:06:41]} Bb7 {[%emt 0:00:58]} 12. Nhf4 {[%emt 0:01:54]} Qh6 {[%emt 0:03:20]} 13. h4 {[%emt 0:01:02]} O-O-O {[%emt 0:01:03]} 14. a3 {[%emt 0:03:29]} Kb8 {[%emt 0:01:58]} 15. Rb1 {[%emt 0:01:28]} Rhe8 {[%emt 0:07:36]} 16. Kf1 {[%emt 0:08:10]} Ne7 {[%emt 0:01:46]} 17. b4 {[%emt 0:08:14]} Nxd5 {[%emt 0:02:26]} 18. cxd5 {[%emt 0:03:45]} cxb4 {[%emt 0:01:57]} 19. e3 {[%emt 0:02:31]} bxa3 {[%emt 0:00:25]} 20. Qa4 {[%emt 0:01:51]} g6 {[%emt 0:08:12]} 21. Rb5 {[%emt 0:05:09]} Rc8 {[%emt 0:02:41]} 22. Ke2 {[%emt 0:01:59]} Rc7 {[%emt 0:01:00]} 23. f3 {[%emt 0:02:04]} exf3+ {[%emt 0:02:02]} 24. Bxf3 {[%emt 0:00:06]} Rec8 {[%emt 0:02:13]} 25. Nd3 {[%emt 0:03:16]} Rc4 {[%emt 0:01:55]} 26. Qb3 {[%emt 0:00:50]} Qf8 {[%emt 0:03:16]} 27. Ra1 {[%emt 0:02:34]} Ba6 {[%emt 0:04:57]} 28. Ra5 {[%emt 0:01:08]} Rb4 {[%emt 0:01:00]} 29. Qxa3 {[%emt 0:02:10]} bxa5 {[%emt 0:00:23]} 30. Qxa5 {[%emt 0:00:06]} Rb6 {[%emt 0:00:51]} 31. Kf2 {[%emt 0:00:20]} Qd8 {[%emt 0:00:58]} 32. Be2 {[%emt 0:00:41]} Qc7 {[%emt 0:00:38]} 0-1

[Event "73rd Greek Championship 2024"]
[Site "Thessaloniki"]
[Date "2024.12.08"]
[Round "7.5"]
[White "Hadzimanolis, Antonios"]
[Black "Kalogridis, Antonios"]
[Result "0-1"]
[Annotator "TA"]
[ECO "D72"]
[WhiteElo "2159"]
[BlackElo "2333"]
[PlyCount "88"]
[EventDate "2024.12.02"]
[EventType "tourn"]
[EventCountry "GRE"]
[SourceTitle "playchess.com"]
[Source "ChessBase"]
[SourceQuality "1"]
[TimeControl "40/5400+30:1800+30"]

{[%evp 14,88,0,29,12,26,13,0,7,9,22,0,0,0,0,-5,15,14,21,-58,-63,-85,-28,-256,-203,-245,-250,-232,-232,-188,-202,-190,-172,-162,-176,-121,0,0,0,-435,-428,-1165,-1165,-1124,-1112,-1086,-1077,-29958,-29966,-29966,-29967,-29967,-29966,-29967,0,-29969,-29969,-29970,-29971,-29971,-29972,-29972,-29973,-29973,-29974,-29974,-29975,-29975,-29976,-29976,-29977,-29976,-29978,-29986,-29980,-29979,-29979]} 1. d4 {[%emt 0:00:04]} Nf6 {[%emt 0:00:03]} 2. c4 {[%emt 0:00:05]} g6 {[%emt 0:00:04]} 3. g3 {[%emt 0:00:11]} Bg7 {[%emt 0:00:06]} 4. Bg2 {[%emt 0:00:07]} d5 {[%emt 0:00:06]} 5. cxd5 {[%emt 0:00:11]} Nxd5 {[%emt 0:00:05]} 6. e4 {[%emt 0:00:12]} Nb6 {[%emt 0:00:04]} 7. Ne2 {[%emt 0:00:15]} c5 {[%emt 0:00:07]} 8. d5 {[%emt 0:02:03]} O-O {[%emt 0:00:05]} 9. Nbc3 {[%emt 0:02:03]} e6 {[%emt 0:00:48]} 10. Be3 {[%emt 0:09:02]} exd5 {[%emt 0:05:59]} 11. exd5 {[%emt 0:03:34]} Na6 {[%emt 0:03:12]} 12. b3 {[%emt 0:08:43]} Bg4 {[%emt 0:05:50]} 13. Rc1 {[%emt 0:01:51]} Nb4 {[%emt 0:03:20]} 14. Qd2 {[%emt 0:05:20]} Re8 {[%emt 0:21:36]} 15. a3 {[%emt 0:30:56]} Bxe2 {[%emt 0:00:49]} 16. axb4 {[%emt 0:00:09]} (16. Kxe2 $11 Bxc3 17. Rxc3 N4xd5 18. Bxd5 Qxd5 (18... Nxd5 19. Rxc5 Nxe3 20. Qxd8 $11) 19. Qxd5 Nxd5 20. Rxc5 Nxe3 21. fxe3) 16... Bxc3 $15 {[%emt 0:00:06]} 17. Qxc3 {[%emt 0:00:54]} Ba6 {[%emt 0:00:25] Black is more active.} (17... Bb5 $17 18. d6 (18. Qxc5 $2 Rc8 $19) 18... cxb4 19. Qxb4 Ba6) 18. d6 $2 {[%emt 0:15:00]} (18. Qxc5 $2 Rc8 19. Kd1 Rxc5 $19) (18. bxc5 $2 Nxd5 19. Qd2 Nxe3 20. fxe3 Qe7 $19 (20... Qxd2+ 21. Kxd2 Rad8+ 22. Kc2 $15)) (18. Qd2 $1 $11 {and White stays safe.} c4 19. O-O) 18... cxb4 $19 {[%emt 0:00:21]} 19. Qd4 {[%emt 0:00:01][%cal Og2h3]} (19. Qxb4 Qf6 20. h4 Rad8) 19... Re6 {[%emt 0:11:58]} 20. Rd1 {[%emt 0:00:17][%cal Oh2h4]} Qd7 {[%emt 0:00:52]} 21. Qxb4 {[%emt 0:06:06]} Rd8 {[%emt 0:00:41][%cal Oe6e5]} 22. h4 {[%emt 0:01:59]} h5 {[%emt 0:02:06][%cal Oe6e5]} 23. g4 {[%emt 0:02:55]} (23. Bh3 $2 Qc6 24. Bxe6 Qxh1+ 25. Kd2 Qf3 $19 (25... Qc6 $2 26. Bxb6 axb6 27. Bc4 $19)) 23... hxg4 $40 {[%emt 0:03:40][%mdl 128] Black is out for blood.} 24. h5 {[%emt 0:00:05]} Qe8 {[%emt 0:00:16]} ({Black should play} 24... g5 $1 $17 {...Re5 is the strong threat.} 25. h6 (25. Qxg4 $2 Rxe3+ 26. fxe3 Qxg4 $19) 25... Kh8) 25. Rd2 $1 $11 {[%emt 0:01:43] and hxg6 should not be overlooked} gxh5 {[%emt 0:05:47]} (25... Rxe3+ 26. fxe3 Qxe3+ 27. Kd1 gxh5 28. Kc2 $15 (28. Rxh5 $2 Qg1+ 29. Kc2 Rc8+ 30. Kb2 Qc1+ 31. Ka2 Rc2+ 32. Rxc2 Qxc2+ 33. Ka3 Qc1+ 34. Ka2 Nc4 $19)) 26. Rxh5 $2 {[%emt 0:00:43][%mdl 8192]} (26. Kd1 $1 $11 Rxe3 27. fxe3 Qxe3 28. Re1 (28. Rxh5 $2 Qg1+ 29. Kc2 Rc8+ $19)) 26... Rxe3+ $1 $19 {[%emt 0:02:18]} 27. fxe3 {[%emt 0:00:02]} (27. Kd1 $142 Re1+ 28. Kc2) 27... Qxe3+ {[%emt 0:00:09]} 28. Kd1 {[%emt 0:00:07]} Qg1+ {[%emt 0:00:11]} 29. Kc2 {[%emt 0:00:11]} Rc8+ {[%emt 0:03:44]} 30. Kb2 {[%emt 0:00:01]} Qc1+ {[%emt 0:00:51]} 31. Ka2 {[%emt 0:00:01]} Rc2+ {[%emt 0:00:07]} 32. Rxc2 {[%emt 0:00:08]} Qxc2+ {[%emt 0:00:04]} 33. Ka1 {[%emt 0:05:19] [#]} Qc1+ $1 {[%emt 0:00:35]} ({And not} 33... Qxg2 34. Rg5+ Kh7 35. Qc3 Qg1+ 36. Ka2 Qh2+ 37. Kb1 $11) (33... Qd1+ $2 34. Kb2 Bd3 (34... Qe2+ $2 35. Ka3 $18) 35. Qc3 $18 (35. Bxb7 Qc2+ 36. Ka3 Qc1+ 37. Ka2 Qb1+ 38. Ka3 Qa1#) (35. Rg5+ Bg6 $11)) 34. Ka2 {[%emt 0:00:02] [#]} Nc4 $1 {[%emt 0:00:09][%csl Gc4][%cal Rc1b2][%mdl 512]} 35. Rg5+ {[%emt 0:05:43]} Kh8 {[%emt 0:00:05][%csl Gc4][%cal Rc1b2]} (35... Qxg5 36. bxc4 Qf5 37. Bd5 $17) 36. Rh5+ {[%emt 0:01:11]} Kg7 {[%emt 0:00:07][%csl Gc4][%cal Rc1b2]} 37. Rg5+ {[%emt 0:00:08]} Kh6 {[%emt 0:00:06][%csl Gc4][%cal Rc1b2]} ({Not} 37... Qxg5 38. bxc4 Qf5 39. c5 $15) 38. Rh5+ {[%emt 0:00:39]} Kxh5 {[%emt 0:00:05][%csl Gc4][%cal Rc1b2]} 39. Qc5+ {[%emt 0:00:05]} Kh6 {[%emt 0:00:05][%csl Gc4][%cal Rc1b2]} 40. Qd4 {[%emt 0:00:00]} Qa3+ {[%emt 0:00:00]} 41. Kb1 {[%emt 0:00:28]} Qxb3+ {[%emt 0:00:12]} 42. Kc1 {[%emt 0:00:46]} Qa3+ {[%emt 0:00:03]} 43. Kb1 {[%emt 0:00:44]} Qxd6 {[%emt 0:00:30]} 44. Qh8+ {[%emt 0:01:18]} Kg5 {[%emt 0:00:04]} 0-1

[Event "73rd Greek Championship 2024"]
[Site "Thessaloniki"]
[Date "2024.12.09"]
[Round "8.1"]
[White "Patrelakis, Evaggelos"]
[Black "Kalogridis, Antonios"]
[Result "1/2-1/2"]
[Annotator "TA"]
[ECO "C42"]
[WhiteElo "2437"]
[BlackElo "2333"]
[PlyCount "60"]
[EventDate "2024.12.02"]
[EventType "tourn"]
[EventCountry "GRE"]
[SourceTitle "playchess.com"]
[Source "ChessBase"]
[SourceQuality "1"]
[TimeControl "40/5400+30:1800+30"]

{[%evp 17,60,0,27,0,0,14,16,12,8,-46,-47,-39,-45,-121,-112,-169,-142,-211,-20,-22,-11,-8,-7,-6,-6,-12,-8,-10,-9,-10,-6,-8,-4,-8,-11,-9,-8,-11,-10,-14,-12,-9,-9,-11,0]} 1. e4 {[%emt 0:02:05]} e5 {[%emt 0:00:01]} 2. Nf3 {[%emt 0:00:10]} Nf6 {[%emt 0:00:04]} 3. Nxe5 {[%emt 0:00:34]} d6 {[%emt 0:00:03]} 4. Nf3 {[%emt 0:00:10]} Nxe4 {[%emt 0:00:04]} 5. Nc3 {[%emt 0:00:09]} Nxc3 {[%emt 0:00:04]} 6. dxc3 {[%emt 0:00:07]} Be7 {[%emt 0:00:03]} 7. Bf4 {[%emt 0:00:33]} O-O {[%emt 0:00:36]} 8. Qd2 {[%emt 0:00:21]} Nd7 {[%emt 0:00:17]} 9. O-O-O {[%emt 0:01:07]} Nf6 {[%emt 0:01:29]} 10. h4 {[%emt 0:06:59]} Re8 {[%emt 0:04:16]} 11. Bd3 {[%emt 0:08:04] Inhibits Ne4.} d5 {[%emt 0:03:01]} 12. Rde1 {[%emt 0:06:18]} c5 {[%emt 0:12:19]} 13. c4 {[%emt 0:05:46] [#]} (13. Bg5 $11) 13... b5 $1 $15 {[%emt 0:00:18]} 14. cxd5 {[%emt 0:20:25]} Qxd5 {[%emt 0:00:10]} 15. Qa5 {[%emt 0:02:27]} (15. c4 $15 bxc4 16. Bc2) 15... c4 $17 {[%emt 0:02:52]} 16. Be2 {[%emt 0:12:18]} (16. Re5 $17 Qc6 17. Bf1 (17. Nd4 $2 Qd7 $19)) 16... Bf5 {[%emt 0:00:30]} 17. Ng5 {[%emt 0:00:30] Prevents Qe4.} (17. Be3 $17) 17... Bd8 $2 {[%emt 0:00:30]} (17... Qxg2 18. Bf3 Qxf2 19. Re2 $15) (17... c3 $19 18. bxc3 Qxg2) 18. Qd2 $11 {[%emt 0:00:30]} Qxd2+ {[%emt 0:00:30]} (18... Qxg2 $2 {perishes.} 19. Bf3 $18) (18... c3 {keeps more tension.} 19. Qxd5 Nxd5 20. Bf3 cxb2+ 21. Kb1 Bxg5 22. Bxg5 Be6) 19. Bxd2 {[%emt 0:00:30]} Bb6 {[%emt 0:00:30]} 20. Bf3 {[%emt 0:00:30]} Rac8 {[%emt 0:00:30]} 21. Rxe8+ {[%emt 0:00:30]} Rxe8 {[%emt 0:00:30]} 22. Bc6 {[%emt 0:00:30][%csl LRb5,LRe8]} Bd7 {[%emt 0:00:30]} 23. Bxd7 {[%emt 0:00:30]} Nxd7 {[%emt 0:00:30]} 24. Re1 {[%emt 0:00:30]} Rxe1+ {[%emt 0:00:30]} 25. Bxe1 {[%emt 0:00:30][%mdl 4096] Endgame KBN-KBN} Nc5 {[%emt 0:00:30]} 26. Kd1 {[%emt 0:00:30]} f6 {[%emt 0:00:30]} 27. Nf3 {[%emt 0:00:30]} Ne4 {[%emt 0:00:30]} 28. Ke2 {[%emt 0:00:30]} Kf7 {[%emt 0:00:30]} 29. Nd2 {[%emt 0:00:30]} Nxd2 {[%emt 0:00:30]} 30. Bxd2 {[%emt 0:00:30]} Ke6 {[%emt 0:00:30]} 1/2-1/2